[Event "27th 4NCL Congress Open 2022"]
[Site "Harrogate"]
[Date "2022.01.23"]
[Round "5.20"]
[White "Faulkner, Martin J"]
[Black "Wynarczyk, Raymond"]
[Result "1-0"]
[ECO "D35"]
[WhiteElo "1833"]
[BlackElo "1752"]
[Annotator "NA RC"]
[PlyCount "95"]
[EventDate "2022.01.21"]
[EventType "swiss"]
[EventCountry "ENG"]
[SourceTitle "playchess.com"]
[Source "ChessBase"]
[SourceQuality "1"]
[TimeControl "5400+30"]

{[%evp 17,82,31,114,32767,32767,116,114,32767,149,146,160,167,171,100,117,120,126,89,93,102,105,113,32767,122,32767,97,32767,32767,32767,32767,32767,32767,32767,32767,32767,146,129,132,153,32767,32767,142,150,115,132,126,147,122,147,21,194,202,191,32767,32767,32767,32767,32767,237,32767,332,458,32767,32767,32767,678,741]} 1. c4 {[%emt 0:00:03]} e6 {[%emt 0:00:08]} 2. Nc3 {[%emt 0:00:13]} d5 {[%emt 0:00:19]} 3. d4 {[%emt 0:00:07]} Nf6 {[%emt 0:00:07]} 4. cxd5 {[%emt 0:00:06]} exd5 {[%emt 0:00:11]} 5. Bg5 {[%emt 0:00:16]} Bb4 {[%emt 0:00:30]} 6. a3 {[%emt 0:05:49]} Bxc3+ {[%emt 0:01:29]} 7. bxc3 {[%emt 0:00:05]} Qd6 {[%emt 0:00:11]} 8. e3 {[%emt 0:06:53]} O-O {[%emt 0:01:20]} 9. Bd3 {[%emt 0:00:47]} Re8 {[%emt 0:01:29]} (9... h6 $11 {keeps the balance.} 10. Bf4 Qc6) 10. Bxf6 {[%emt 0:01:46]} Qxf6 {[%emt 0:00:13]} 11. Qh5 {[%emt 0:00:27]} g6 {[%emt 0:02:34]} 12. Qxd5 {[%emt 0:00:51]} c6 {[%emt 0:00:20]} 13. Qf3 {[%emt 0:00:27]} Qd6 {[%emt 0:01:50]} 14. Ne2 {[%emt 0:04:50]} Nd7 {[%emt 0:01:36]} 15. Bc4 {[%emt 0:05:05]} (15. e4 $18) 15... Nf6 {[%emt 0:00:33]} 16. h3 {[%emt 0:04:09]} Bf5 {[%emt 0:02:47]} 17. O-O {[%emt 0:06:35]} Ne4 {[%emt 0:02:05]} 18. Rfd1 {[%emt 0:04:54]} Rad8 {[%emt 0:02:28]} 19. Bd3 {[%emt 0:11:23]} Ng5 {[%emt 0:02:38]} 20. Qf4 {[%emt 0:04:00]} Bxd3 {[%emt 0:01:48]} 21. Rxd3 {[%emt 0:00:54]} Ne6 {[%emt 0:02:58]} 22. Qxd6 {[%emt 0:02:02]} Rxd6 {[%emt 0:00:09]} 23. Rdd1 {[%emt 0:00:41]} Red8 {[%emt 0:02:55]} 24. Rdb1 {[%emt 0:03:55]} b6 {[%emt 0:01:30]} 25. a4 {[%emt 0:01:06]} f5 {[%emt 0:02:25]} 26. g3 {[%emt 0:05:01]} Ng5 {[%emt 0:01:45]} 27. Kg2 {[%emt 0:00:34]} Ne4 {[%emt 0:00:36]} 28. Rb2 {[%emt 0:02:25]} Rd5 {[%emt 0:01:49]} 29. c4 {[%emt 0:05:06]} Ra5 {[%emt 0:00:11]} 30. f3 {[%emt 0:00:33]} Nd6 {[%emt 0:00:29]} 31. Rc2 {[%emt 0:04:12]} b5 {[%emt 0:01:32]} 32. cxb5 {[%emt 0:00:12]} cxb5 {[%emt 0:01:01]} 33. Rc5 {[%emt 0:03:07]} ({White should play} 33. Kf2 $16) 33... Rb8 $2 {[%emt 0:06:51]} (33... Rxa4 $11 {and Black stays safe.} 34. Rxa4 bxa4) 34. Nc3 {[%emt 0:07:55]} Ra6 {[%emt 0:01:37]} 35. a5 {[%emt 0:00:57]} Nc4 {[%emt 0:02:21]} 36. e4 {[%emt 0:03:45]} Ne3+ {[%emt 0:02:53]} 37. Kf2 {[%emt 0:00:29]} Nc2 {[%emt 0:00:35]} 38. Rd1 {[%emt 0:01:51]} Rxa5 {[%emt 0:05:30]} (38... b4 {was worth a try.}) 39. d5 {[%emt 0:00:43]} Rd8 {[%emt 0:05:05]} 40. e5 {[%emt 0:00:57]} Ra6 {[%emt 0:02:04]} 41. Rxb5 {[%emt 0:03:21]} Ra3 $18 {[%emt 0:03:10]} 42. Rc5 {[%emt 0:00:45]} Nb4 {[%emt 0:01:54]} 43. e6 {[%emt 0:00:53]} Na6 {[%emt 0:03:33]} 44. Rc6 {[%emt 0:00:06]} Nb8 {[%emt 0:02:44]} 45. Rc7 {[%emt 0:00:13]} Ra6 {[%emt 0:03:10]} 46. Nb5 {[%emt 0:01:07]} Ra5 {[%emt 0:03:15]} 47. e7 {[%emt 0:00:55]} Re8 {[%emt 0:00:29]} 48. Nd6 {[%emt 0:00:02]} 1-0

[Event "27th 4NCL Congress Open 2022"]
[Site "Harrogate"]
[Date "2022.01.23"]
[Round "5.21"]
[White "Lampard, Alice"]
[Black "Sheppard, Derek Alan"]
[Result "1/2-1/2"]
[ECO "E33"]
[WhiteElo "1754"]
[BlackElo "1692"]
[Annotator "NA RC"]
[PlyCount "34"]
[EventDate "2022.01.21"]
[EventType "swiss"]
[EventCountry "ENG"]
[SourceTitle "playchess.com"]
[Source "ChessBase"]
[SourceQuality "1"]
[TimeControl "5400+30"]

1. d4 {[%emt 0:00:04]} Nf6 {[%emt 0:00:11]} 2. c4 {[%emt 0:00:07]} e6 {[%emt 0:00:36]} 3. Nc3 {[%emt 0:00:17]} Bb4 {[%emt 0:00:10]} 4. Qc2 {[%emt 0:00:14]} Nc6 {[%emt 0:00:12]} 5. Nf3 {[%emt 0:00:48]} O-O {[%emt 0:01:34]} 6. e4 {[%emt 0:01:04]} Bxc3+ {[%emt 0:05:35]} 7. bxc3 {[%emt 0:00:08]} d6 {[%emt 0:01:27]} 8. Be2 {[%emt 0:04:26]} e5 {[%emt 0:00:31]} 9. d5 {[%emt 0:01:31]} Nb8 {[%emt 0:03:28]} 10. h3 {[%emt 0:00:53]} a5 {[%emt 0:02:04]} 11. a4 {[%emt 0:01:02]} Na6 {[%emt 0:00:30]} 12. Be3 {[%emt 0:00:55]} b6 {[%emt 0:00:21]} 13. O-O {[%emt 0:01:25]} Bd7 {[%emt 0:02:46]} 14. Nd2 {[%emt 0:01:43]} Nc5 {[%emt 0:10:15]} 15. Bxc5 {[%emt 0:03:18]} bxc5 {[%emt 0:00:12]} 16. Rfb1 {[%emt 0:00:37]} Ne8 {[%emt 0:06:53]} 17. Nf1 {[%emt 0:14:20]} f5 {[%emt 0:00:53]} 1/2-1/2